fUST/lending_fUST_20250206
["ID","MTS","AMOUNT","RATE_DAILY","PERIOD"]
[351789536,1738788653949,-3664.51,0.00013972,2]
[351789538,1738788653959,-551.85,0.00013972,2]
[351789540,1738788653968,-500.0,0.00013972,2]
[351789542,1738788653977,-500.0,0.00013972,2]
[351789543,1738788653987,-500.0,0.00013972,2]
[351789546,1738788653999,-500.0,0.00013972,2]
[351789547,1738788654008,-528.71,0.00013972,2]
[351789549,1738788654018,-500.0,0.00013972,2]
[351789551,1738788654027,-1701.5,0.00013972,2]
[351789553,1738788654036,-3775.22,0.00013972,2]
[351789555,1738788654046,-500.0,0.00013972,2]
[351789557,1738788654055,-500.0,0.00013972,2]
[351789559,1738788654065,-1334.63,0.00013972,2]
[351789561,1738788654074,-500.0,0.00013972,2]
[351789563,1738788654083,-500.0,0.00013972,2]
[351789565,1738788654092,-151.0,0.00013972,2]
[351789568,1738788654102,-500.0,0.00013972,2]
[351789569,1738788654111,-151.0,0.00013972,2]
[351789571,1738788654121,-691.84,0.00013972,2]
[351789573,1738788654131,-500.0,0.00013972,2]
[351789575,1738788654140,-500.0,0.00013972,2]
[351789577,1738788654150,-516.34,0.00013972,2]
[351789580,1738788654160,-658.65,0.00013972,2]
[351789582,1738788654169,-500.0,0.00013972,2]
[351789584,1738788654178,-500.0,0.00013972,2]
[351789585,1738788654187,-1331.76,0.00013972,2]
[351789587,1738788654197,-500.0,0.00013972,2]
[351789589,1738788654206,-500.0,0.00013972,2]
[351789591,1738788654216,-500.0,0.00013972,2]
[351789593,1738788654225,-511.70904001,0.00013972,2]
[351789596,1738788654235,-500.0,0.00013972,2]
[351789598,1738788654244,-643.09,0.00013972,2]
[351789600,1738788654254,-981.14,0.00013972,2]
[351789601,1738788654264,-765.65,0.00013972,2]
[351789603,1738788654273,-1445.94,0.00013972,2]
[351789605,1738788654283,-2283.23,0.00013972,2]
[351789607,1738788654293,-500.0,0.00013972,2]
[351789609,1738788654303,-557.37,0.00013972,2]
[351789611,1738788654312,-988.3,0.00013972,2]
[351789614,1738788654322,-1687.35,0.00013972,2]
[351789616,1738788654332,-796.21,0.00013972,2]
[351789618,1738788654342,-885.64,0.00013972,2]
[351789620,1738788654352,-500.0,0.00013972,2]
[351789622,1738788654362,-500.0,0.00013972,2]
[351789624,1738788654373,-1834.15,0.00013972,2]
[351789625,1738788654383,-924.52,0.00013972,2]
[351789627,1738788654392,-151.0,0.00013972,2]
[351789629,1738788654402,-151.0,0.00013972,2]
[351789631,1738788654411,-901.29,0.00013972,2]
[351789633,1738788654424,-500.0,0.00013972,2]
[351789636,1738788654434,-629.3695022,0.00013972,2]
[351789637,1738788654443,-151.0,0.00013972,2]
[351789639,1738788654453,-151.0,0.00013972,2]
[351789641,1738788654463,-572.57559636,0.00013972,2]
[351789643,1738788654474,-821.92,0.00013972,2]
[351789645,1738788654483,-4424.8,0.00013972,2]
[351789647,1738788654493,-3024.83,0.00013972,2]
[351789650,1738788654505,-1377.94,0.00013972,2]
[351789652,1738788654516,-500.0,0.00013972,2]
[351789654,1738788654528,-500.0,0.00013972,2]
[351789656,1738788654538,-500.0,0.00013972,2]
[351789658,1738788654547,-500.0,0.00013972,2]
[351789660,1738788654557,-500.0,0.00013972,2]
[351789662,1738788654567,-524.45,0.00013972,2]
[351789664,1738788654576,-500.0,0.00013972,2]
[351789666,1738788654585,-500.0,0.00013972,2]
[351789668,1738788654595,-151.0,0.00013972,2]
[351789670,1738788654604,-151.0,0.00013972,2]
[351789672,1738788654614,-2825.29,0.00013972,2]
[351789674,1738788654623,-500.0,0.00013972,2]
[351789676,1738788654633,-841.09,0.00013972,2]
[351789678,1738788654643,-500.0,0.00013972,2]
[351789680,1738788654652,-1605.9,0.00013972,2]
[351789682,1738788654662,-471.21177192,0.00013972,2]
[351789684,1738788654671,-575.61,0.00013972,2]
[351789686,1738788654681,-500.0,0.00013972,2]
[351789688,1738788654690,-120096.66,0.00013972,2]
[351789690,1738788654700,-536.73,0.00013972,2]
[351789692,1738788654709,-500.0,0.00013972,2]
[351789694,1738788654720,-500.0,0.00013972,2]
[351789696,1738788654730,-500.0,0.00013972,2]
[351789698,1738788654742,-1064.77,0.00013972,2]
[351789700,1738788654753,-500.0,0.00013972,2]
[351789702,1738788654762,-500.0,0.00013972,2]
[351789704,1738788654771,-5069.96,0.00013972,2]
[351789706,1738788654781,-7969.7,0.00013972,2]
[351789708,1738788654791,-151.0,0.00013972,2]
[351789710,1738788654801,-500.0,0.00013972,2]
[351789712,1738788654810,-6982.07,0.00013972,2]
[351789714,1738788654820,-500.0,0.00013972,2]
[351789716,1738788654830,-684.69,0.00013972,2]
[351789718,1738788654839,-500.0,0.00013972,2]
[351789720,1738788654848,-500.0,0.00013972,2]
[351789722,1738788654857,-500.0,0.00013972,2]
[351789724,1738788654867,-1027.29,0.00013972,2]
[351789725,1738788654877,-706.71,0.00013972,2]
[351789727,1738788654886,-3105.37,0.00013972,2]
[351789729,1738788654897,-3730.84,0.00013972,2]
[351789731,1738788654909,-500.0,0.00013972,2]
[351789733,1738788654919,-500.0,0.00013972,2]
[351789735,1738788654928,-500.0,0.00013972,2]
[351789750,1738788655058,-2911.4,0.00013972,2]
[351789752,1738788655069,-500.0,0.00013972,2]
[351789754,1738788655079,-2683.47,0.00013972,2]
[351789756,1738788655089,-698.49,0.00013972,2]
[351789758,1738788655099,-500.0,0.00013972,2]
[351789760,1738788655110,-500.0,0.00013972,2]
[351789762,1738788655121,-500.0,0.00013972,2]
[351789764,1738788655131,-500.0,0.00013972,2]
[351789766,1738788655140,-500.0,0.00013972,2]
[351789768,1738788655150,-585.39,0.00013972,2]
[351789770,1738788655159,-500.0,0.00013972,2]
[351789772,1738788655168,-500.0,0.00013972,2]
[351789774,1738788655178,-928.33,0.00013972,2]
[351789776,1738788655188,-408.073163,0.00013972,2]
[351789778,1738788655197,-500.0,0.00013972,2]
[351789780,1738788655207,-500.0,0.00013972,2]
[351789782,1738788655217,-500.0,0.00013972,2]
[351789784,1738788655227,-2165.99874208,0.00013972,2]
[351792261,1738789224765,-153.28,0.000179,31]
[351792262,1738789224791,-153.28,0.000179,31]
[351792263,1738789224817,-153.28,0.000179,31]
[351792264,1738789224844,-153.28,0.000179,31]
[351792265,1738789224870,-153.28,0.000179,31]
[351792266,1738789224895,-153.28,0.000179,31]
[351792267,1738789224919,-7445.52099277,0.00018,30]
[351792268,1738789224941,-2000.0,0.00018027,30]
[351792269,1738789224965,-2000.0,0.00018027,30]
[351792270,1738789224993,-2000.0,0.00018055,30]
[351792271,1738789225016,-2000.0,0.00018055,30]
[351792272,1738789225039,-2000.0,0.00018082,30]
[351792273,1738789225063,-1626.68150723,0.00018082,30]
[351792318,1738789832577,-388.5987275,0.00012699,2]
[351792320,1738789832587,-673.16,0.00012783,2]
[351792322,1738789832597,-481.28569482,0.00013404,2]
[351792324,1738789832607,-192.00527384,0.00013597,2]
[351792326,1738789832616,-300.0,0.00013597,2]
[351792328,1738789832626,-50190.28035697,0.00013598,4]
[351792330,1738789832636,-295.54479715,0.00013631,2]
[351792332,1738789832645,-151.0,0.0001369,2]
[351792334,1738789832655,-500.0,0.00013697,2]
[351792336,1738789832664,-500.0,0.00013697,2]
[351792338,1738789832673,-378.05839239,0.00013697,2]
[351792340,1738789832683,-514.84016991,0.00013697,2]
[351792342,1738789832692,-500.0,0.00013697,2]
[351792344,1738789832701,-588.68497984,0.00013697,2]
[351792346,1738789832711,-500.24457591,0.00013697,2]
[351792348,1738789832720,-500.0,0.00013697,2]
[351792349,1738789832730,-612.46755618,0.00013697,2]
[351792351,1738789832739,-503.21138459,0.00013697,2]
[351792355,1738789832750,-576.83473718,0.00013697,2]
[351792356,1738789832760,-500.0,0.00013697,2]
[351792358,1738789832769,-500.0,0.00013697,2]
[351792361,1738789832779,-500.0,0.00013697,2]
[351792363,1738789832789,-372.758819,0.00013697,2]
[351792365,1738789832798,-500.0,0.00013697,2]
[351792366,1738789832807,-500.0,0.00013697,2]
[351792368,1738789832816,-500.0,0.00013697,2]
[351792370,1738789832825,-500.0,0.00013697,2]
[351792372,1738789832834,-500.0,0.00013697,2]
[351792374,1738789832844,-223.08101247,0.00013697,2]
[351792376,1738789832853,-500.0,0.00013697,2]
[351792378,1738789832863,-525.03931373,0.00013697,2]
[351792380,1738789832872,-500.0,0.00013697,2]
[351792382,1738789832881,-500.0,0.00013697,2]
[351792384,1738789832890,-354.1173277,0.00013697,2]
[351792386,1738789832901,-500.0,0.00013697,2]
[351792389,1738789832911,-761.69099683,0.00013697,2]
[351792391,1738789832920,-761.69099683,0.00013697,2]
[351792393,1738789832930,-761.69099683,0.00013697,2]
[351792394,1738789832939,-761.69099683,0.00013697,2]
[351792396,1738789832950,-761.69099683,0.00013697,2]
[351792399,1738789832960,-761.69099683,0.00013697,2]
[351792401,1738789832970,-761.69099683,0.00013697,2]
[351792403,1738789832980,-761.69099683,0.00013697,2]
[351792405,1738789832991,-761.69099683,0.00013697,2]
[351792406,1738789833001,-761.69099683,0.00013697,2]
[351792409,1738789833011,-761.69099683,0.00013697,2]
[351792411,1738789833021,-761.69099683,0.00013697,2]
[351792412,1738789833031,-761.69099683,0.00013697,2]
[351792415,1738789833041,-761.69099683,0.00013697,2]
[351792417,1738789833051,-761.69099683,0.00013697,2]
[351792419,1738789833061,-761.69099683,0.00013697,2]
[351792420,1738789833070,-761.69099683,0.00013697,2]
[351792423,1738789833080,-761.69099683,0.00013697,2]
[351792424,1738789833090,-761.69099683,0.00013697,2]
[351792427,1738789833100,-761.69099683,0.00013697,2]
[351792429,1738789833111,-761.69099683,0.00013697,2]
[351792431,1738789833120,-761.69099683,0.00013697,2]
[351792433,1738789833129,-761.69099683,0.00013697,2]
[351792434,1738789833139,-761.69099683,0.00013697,2]
[351792436,1738789833149,-761.69099683,0.00013697,2]
[351792439,1738789833159,-761.69099683,0.00013697,2]
[351792441,1738789833169,-761.69099683,0.00013697,2]
[351792443,1738789833178,-761.69099683,0.00013697,2]
[351792445,1738789833187,-761.69099683,0.00013697,2]
[351792447,1738789833199,-761.69099683,0.00013697,2]
[351792449,1738789833208,-761.69099683,0.00013697,2]
[351792451,1738789833218,-761.69099683,0.00013697,2]
[351792453,1738789833229,-761.69099683,0.00013697,2]
[351792455,1738789833239,-761.69099683,0.00013697,2]
[351792457,1738789833249,-761.69099683,0.00013697,2]
[351792459,1738789833259,-761.69099683,0.00013697,2]
[351792461,1738789833269,-761.69099683,0.00013697,2]
[351792463,1738789833279,-761.69099683,0.00013697,2]
[351792465,1738789833299,-761.69099683,0.00013697,2]
[351792467,1738789833309,-761.69099683,0.00013697,2]
[351792469,1738789833319,-761.69099683,0.00013697,2]
[351792471,1738789833329,-557.11831146,0.00013697,2]
[351792986,1738789838455,-204.57268537,0.00013697,2]
[351792988,1738789838465,-337.97692325,0.00013697,2]
[351792990,1738789838477,-423.71407358,0.00013697,2]
[351792992,1738789838486,-761.69099683,0.00013697,2]
[351792994,1738789838495,-761.69099683,0.00013697,2]
[351792996,1738789838505,-761.69099683,0.00013697,2]
[351792998,1738789838515,-761.69099683,0.00013697,2]
[351793000,1738789838524,-792.63469358,0.00013697,2]
[351793002,1738789838534,-792.63469358,0.00013697,2]
[351793004,1738789838543,-792.63469358,0.00013697,2]
[351793006,1738789838553,-792.63469358,0.00013697,2]
[351793008,1738789838563,-792.63469358,0.00013697,2]
[351793011,1738789838573,-792.63469358,0.00013697,2]
[351793014,1738789838582,-792.63469358,0.00013697,2]
[351793017,1738789838592,-792.63469358,0.00013697,2]
[351793020,1738789838601,-792.63469358,0.00013697,2]
[351793022,1738789838611,-792.63469358,0.00013697,2]
[351793026,1738789838620,-792.63469358,0.00013697,2]
[351793030,1738789838630,-792.63469358,0.00013697,2]
[351793033,1738789838640,-792.63469358,0.00013697,2]
[351793035,1738789838650,-792.63469358,0.00013697,2]
[351793037,1738789838659,-792.63469358,0.00013697,2]
[351793039,1738789838669,-792.63469358,0.00013697,2]
[351793041,1738789838678,-792.63469358,0.00013697,2]
[351793043,1738789838688,-792.63469358,0.00013697,2]
[351793045,1738789838698,-792.63469358,0.00013697,2]
[351793047,1738789838707,-792.63469358,0.00013697,2]
[351793049,1738789838718,-792.63469358,0.00013697,2]
[351793051,1738789838727,-792.63469358,0.00013697,2]
[351793053,1738789838737,-792.63469358,0.00013697,2]
[351793055,1738789838747,-792.63469358,0.00013697,2]
[351793057,1738789838757,-792.63469358,0.00013697,2]
[351793059,1738789838767,-792.63469358,0.00013697,2]
[351793061,1738789838777,-792.63469358,0.00013697,2]
[351793063,1738789838786,-792.63469358,0.00013697,2]
[351793065,1738789838796,-792.63469358,0.00013697,2]
[351793067,1738789838806,-792.63469358,0.00013697,2]
[351793069,1738789838816,-792.63469358,0.00013697,2]
[351793071,1738789838825,-792.63469358,0.00013697,2]
[351793073,1738789838834,-500.0,0.00013697,2]
[351793075,1738789838843,-177.53423953,0.00013697,2]
[351793077,1738789838853,-325.0755868,0.00013697,2]
[351793079,1738789838863,-502.36438095,0.00013698,2]
[351793081,1738789838873,-500.0,0.00013698,2]
[351793083,1738789838883,-501.87761352,0.00013698,2]
[351793085,1738789838892,-500.36886257,0.00013698,2]
[351793087,1738789838901,-453.24663508,0.00013698,2]
[351793089,1738789838911,-406.53801196,0.00013698,2]
[351793091,1738789838920,-505.12203579,0.00013698,2]
[351793093,1738789838929,-501.02016974,0.00013698,2]
[351793095,1738789838939,-501.59928835,0.00013698,2]
[351793097,1738789838948,-310.09197429,0.00013698,2]
[351793099,1738789838958,-500.0,0.00013698,2]
[351793101,1738789838968,-624.90807282,0.00013698,2]
[351793103,1738789838978,-306.86299462,0.00013698,2]
[351793105,1738789838987,-500.0,0.00013698,2]
[351793107,1738789838998,-500.0,0.00013698,2]
[351793109,1738789839008,-500.0,0.00013698,2]
[351793111,1738789839018,-486.50431685,0.00013698,2]
[351793113,1738789839027,-500.0,0.00013698,2]
[351793115,1738789839037,-500.0,0.00013698,2]
[351793117,1738789839048,-500.0,0.00013698,2]
[351793119,1738789839057,-500.0,0.00013698,2]
[351793121,1738789839066,-500.0,0.00013698,2]
[351793122,1738789839075,-500.0,0.00013698,2]
[351793123,1738789839085,-530.13,0.00013698,2]
[351793124,1738789839095,-746.44,0.00013698,2]
[351793125,1738789839104,-501.06685821,0.00013698,2]
[351793126,1738789839113,-500.0,0.00013698,2]
[351793127,1738789839123,-500.0,0.00013698,2]
[351793128,1738789839132,-500.0,0.00013698,2]
[351793129,1738789839142,-621.93,0.00013698,2]
[351793130,1738789839151,-500.0,0.00013698,2]
[351793131,1738789839161,-500.0,0.00013698,2]
[351793132,1738789839171,-500.0,0.00013698,2]
[351793133,1738789839180,-615.74,0.00013698,2]
[351793134,1738789839190,-500.0,0.00013698,2]
[351793135,1738789839199,-1179.54,0.00013698,2]
[351793136,1738789839209,-234.74096042,0.00013698,2]
[351793137,1738789839218,-500.0,0.00013698,2]
[351793139,1738789839227,-500.0,0.00013698,2]
[351793141,1738789839237,-501.76393492,0.00013698,2]
[351793142,1738789839247,-1013.38,0.00013698,2]
[351793144,1738789839257,-500.0,0.00013698,2]
[351793146,1738789839266,-500.0,0.00013698,2]
[351793148,1738789839275,-500.0,0.00013698,2]
[351793150,1738789839288,-500.0,0.00013698,2]
[351793152,1738789839299,-572.17,0.00013698,2]
[351793154,1738789839308,-500.0,0.00013698,2]
[351793156,1738789839318,-500.0,0.00013698,2]
[351793158,1738789839327,-500.0,0.00013698,2]
[351793160,1738789839336,-500.0,0.00013698,2]
[351793162,1738789839346,-500.0,0.00013698,2]
[351793164,1738789839355,-408.81377868,0.00013698,2]
[351793166,1738789839365,-500.0,0.00013698,2]
[351793168,1738789839375,-500.0,0.00013698,2]
[351793170,1738789839384,-1000.0,0.00013698,2]
[351793172,1738789839394,-652.34,0.00013698,2]
[351793174,1738789839403,-500.0,0.00013698,2]
[351793176,1738789839413,-640.09,0.00013698,2]
[351793178,1738789839423,-500.0,0.00013698,2]
[351793180,1738789839433,-500.0,0.00013698,2]
[351793182,1738789839443,-1502.48,0.00013698,2]
[351793184,1738789839454,-500.0,0.00013698,2]
[351793186,1738789839465,-1508.32,0.00013698,2]
[351793188,1738789839475,-504.46962706,0.00013698,2]
[351793190,1738789839485,-500.0,0.00013698,2]
[351793192,1738789839495,-500.0,0.00013698,2]
[351793194,1738789839507,-500.0,0.00013698,2]
[351793196,1738789839516,-781.77,0.00013698,2]
[351793198,1738789839526,-500.0,0.00013698,2]
[351793199,1738789839535,-500.0,0.00013698,2]
[351793202,1738789839546,-500.0,0.00013698,2]
[351793204,1738789839555,-505.61923189,0.00013698,2]
[351793205,1738789839565,-500.0,0.00013698,2]
[351793208,1738789839575,-500.0,0.00013698,2]
[351793210,1738789839585,-500.0,0.00013698,2]
[351793211,1738789839595,-500.0,0.00013698,2]
[351793213,1738789839605,-505.7492854,0.00013698,2]
[351793215,1738789839614,-505.19265801,0.00013698,2]
[351793218,1738789839624,-500.0,0.00013698,2]
[351793220,1738789839635,-500.0,0.00013698,2]
[351793222,1738789839645,-188.0,0.00013698,2]
[351793224,1738789839655,-500.0,0.00013698,2]
[351793225,1738789839665,-597.13142421,0.00013698,2]
[351793227,1738789839674,-460.53401954,0.00013698,2]
[351793230,1738789839686,-503.16944459,0.00013698,2]
[351793231,1738789839695,-500.0,0.00013698,2]
[351793234,1738789839706,-500.0,0.00013698,2]
[351793236,1738789839716,-500.0,0.00013698,2]
[351793237,1738789839726,-500.0,0.00013698,2]
[351793239,1738789839735,-500.0,0.00013698,2]
[351793241,1738789839745,-500.0,0.00013698,2]
[351793243,1738789839756,-500.0,0.00013698,2]
[351793245,1738789839766,-503.49486909,0.00013698,2]
[351793247,1738789839775,-500.0,0.00013698,2]
[351793249,1738789839784,-500.0,0.00013698,2]
[351793251,1738789839794,-500.0,0.00013698,2]
[351793253,1738789839803,-500.0,0.00013698,2]
[351793255,1738789839813,-974.77,0.00013698,2]
[351793257,1738789839822,-500.0,0.00013698,2]
[351793259,1738789839831,-500.0,0.00013698,2]
[351793261,1738789839841,-500.0,0.00013698,2]
[351793263,1738789839851,-500.0,0.00013698,2]
[351793266,1738789839860,-300.0,0.00013698,2]
[351793268,1738789839870,-500.0,0.00013698,2]
[351793270,1738789839880,-500.0,0.00013698,2]
[351793272,1738789839890,-500.0,0.00013698,2]
[351793274,1738789839899,-527.51,0.00013698,2]
[351793276,1738789839908,-500.0,0.00013698,2]
[351793278,1738789839918,-500.0,0.00013698,2]
[351793279,1738789839927,-500.0,0.00013698,2]
[351793282,1738789839937,-500.0,0.00013698,2]
[351793283,1738789839946,-500.0,0.00013698,2]
[351793285,1738789839956,-500.0,0.00013698,2]
[351793287,1738789839965,-906.83,0.00013698,2]
[351793289,1738789839975,-439.00348576,0.00013698,2]
[351793293,1738789839987,-500.0,0.00013698,2]
[351793295,1738789839997,-500.0,0.00013698,2]
[351793297,1738789840008,-500.0,0.00013698,2]
[351793298,1738789840018,-500.0,0.00013698,2]
[351793300,1738789840028,-500.0,0.00013698,2]
[351793303,1738789840037,-500.0,0.00013698,2]
[351793304,1738789840047,-500.0,0.00013698,2]
[351793306,1738789840056,-500.0,0.00013698,2]
[351793308,1738789840066,-500.0,0.00013698,2]
[351793310,1738789840076,-500.0,0.00013698,2]
[351793312,1738789840085,-515.66,0.00013698,2]
[351793315,1738789840095,-500.0,0.00013698,2]
[351793316,1738789840104,-676.01,0.00013698,2]
[351793318,1738789840117,-519.75081571,0.00013698,2]
[351793320,1738789840127,-500.0,0.00013698,2]
[351793323,1738789840136,-500.0,0.00013698,2]
[351793324,1738789840146,-500.0,0.00013698,2]
[351793327,1738789840156,-500.0,0.00013698,2]
[351793329,1738789840165,-500.0,0.00013698,2]
[351793341,1738789840335,-565.64608276,0.00013698,2]
[351793342,1738789840346,-500.0,0.00013698,2]
[351793343,1738789840356,-769.25,0.00013698,2]
[351793344,1738789840368,-851.27,0.00013698,2]
[351793345,1738789840377,-500.0,0.00013698,2]
[351793346,1738789840386,-637.13,0.00013698,2]
[351793347,1738789840396,-500.0,0.00013698,2]
[351793348,1738789840405,-500.0,0.00013698,2]
[351793349,1738789840415,-500.0,0.00013698,2]
[351793350,1738789840424,-500.0,0.00013698,2]
[351793351,1738789840434,-500.0,0.00013698,2]
[351793352,1738789840444,-500.0,0.00013698,2]
[351793353,1738789840454,-505.74199132,0.00013698,2]
[351793354,1738789840464,-593.05,0.00013698,2]
[351793355,1738789840474,-500.0,0.00013698,2]
[351793357,1738789840483,-500.0,0.00013698,2]
[351793358,1738789840494,-693.14,0.00013698,2]
[351793360,1738789840505,-500.0,0.00013698,2]
[351793363,1738789840515,-500.0,0.00013698,2]
[351793364,1738789840526,-500.0,0.00013698,2]
[351793366,1738789840535,-500.0,0.00013698,2]
[351793368,1738789840545,-500.0,0.00013698,2]
[351793370,1738789840556,-500.0,0.00013698,2]
[351793373,1738789840566,-1713.41,0.00013698,2]
[351793375,1738789840576,-510.38444078,0.00013698,2]
[351793377,1738789840585,-1637.88,0.00013698,2]
[351793378,1738789840595,-505.14936998,0.00013698,2]
[351793382,1738789840614,-500.0,0.00013698,2]
[351793384,1738789840625,-500.0,0.00013698,2]
[351793386,1738789840635,-500.0,0.00013698,2]
[351793388,1738789840644,-500.0,0.00013698,2]
[351793390,1738789840654,-500.0,0.00013698,2]
[351793392,1738789840664,-508.67940819,0.00013698,2]
[351793394,1738789840674,-500.0,0.00013698,2]
[351793396,1738789840685,-525.1974156,0.00013698,2]
[351793398,1738789840695,-500.0,0.00013698,2]
[351793400,1738789840705,-500.0,0.00013698,2]
[351793402,1738789840715,-1320.52,0.00013698,2]
[351793404,1738789840726,-500.0,0.00013698,2]
[351793406,1738789840736,-501.44546254,0.00013698,2]
[351793408,1738789840747,-2506.79,0.00013698,2]
[351793410,1738789840759,-500.0,0.00013698,2]
[351793413,1738789840768,-500.0,0.00013698,2]
[351793416,1738789840778,-511.64698148,0.00013698,2]
[351793418,1738789840789,-500.0,0.00013698,2]
[351793420,1738789840799,-803.11,0.00013698,2]
[351793422,1738789840809,-1015.77,0.00013698,2]
[351793424,1738789840818,-500.0,0.00013698,2]
[351793426,1738789840828,-511.03360105,0.00013698,2]
[351793428,1738789840838,-230.83926229,0.00013698,2]
[351793430,1738789840849,-500.0,0.00013698,2]
[351793432,1738789840859,-808.51,0.00013698,2]
[351793434,1738789840869,-500.0,0.00013698,2]
[351793436,1738789840879,-522.87038383,0.00013698,2]
[351793438,1738789840890,-500.0,0.00013698,2]
[351793440,1738789840900,-523.43,0.00013698,2]
[351793442,1738789840910,-500.0,0.00013698,2]
[351793444,1738789840919,-500.0,0.00013698,2]
[351793446,1738789840930,-500.0,0.00013698,2]
[351793448,1738789840940,-500.0,0.00013698,2]
[351793450,1738789840949,-500.0,0.00013698,2]
[351793452,1738789840959,-2277.66,0.00013698,2]
[351793454,1738789840969,-500.0,0.00013698,2]
[351793456,1738789840980,-500.0,0.00013698,2]
[351793458,1738789840992,-226.42980137,0.00013698,2]
[351793460,1738789841004,-500.0,0.00013698,2]
[351793462,1738789841015,-500.0,0.00013698,2]
[351793464,1738789841025,-500.0,0.00013698,2]
[351793466,1738789841035,-826.88,0.00013698,2]
[351793468,1738789841044,-500.0,0.00013698,2]
[351793470,1738789841055,-1000.0,0.00013698,2]
[351793472,1738789841064,-500.0,0.00013698,2]
[351793475,1738789841074,-500.0,0.00013698,2]
[351793477,1738789841084,-500.0,0.00013698,2]
[351793478,1738789841094,-500.0,0.00013698,2]
[351793481,1738789841105,-500.0,0.00013698,2]
[351793483,1738789841117,-500.0,0.00013698,2]
[351793485,1738789841127,-500.0,0.00013698,2]
[351793487,1738789841138,-500.0,0.00013698,2]
[351793489,1738789841148,-500.0,0.00013698,2]
[351793491,1738789841158,-501.20315006,0.00013698,2]
[351793493,1738789841168,-540.18,0.00013698,2]
[351793495,1738789841178,-505.3879968,0.00013698,2]
[351793497,1738789841188,-500.0,0.00013698,2]
[351793499,1738789841197,-572.46,0.00013698,2]
[351793501,1738789841207,-205.85701015,0.00013698,2]
[351793503,1738789841217,-500.0,0.00013698,2]
[351793505,1738789841227,-500.0,0.00013698,2]
[351793507,1738789841237,-500.0,0.00013698,2]
[351793509,1738789841247,-500.0,0.00013698,2]
[351793511,1738789841258,-536.27,0.00013698,2]
[351793513,1738789841267,-712.18,0.00013698,2]
[351793515,1738789841278,-500.0,0.00013698,2]
[351793517,1738789841291,-500.0,0.00013698,2]
[351793519,1738789841301,-500.0,0.00013698,2]
[351793521,1738789841311,-361.19426287,0.00013698,2]
[351793523,1738789841323,-505.56235276,0.00013698,2]
[351793525,1738789841333,-500.0,0.00013698,2]
[351793527,1738789841344,-764.77,0.00013698,2]
[351793529,1738789841354,-500.0,0.00013698,2]
[351793531,1738789841365,-500.0,0.00013698,2]
[351793533,1738789841376,-500.0,0.00013698,2]
[351793535,1738789841386,-1063.56,0.00013698,2]
[351793537,1738789841396,-500.0,0.00013698,2]
[351793540,1738789841406,-500.0,0.00013698,2]
[351793542,1738789841416,-887.02,0.00013698,2]
[351793544,1738789841426,-500.0,0.00013698,2]
[351793546,1738789841436,-525.87,0.00013698,2]
[351793548,1738789841445,-500.0,0.00013698,2]
[351793550,1738789841455,-500.0,0.00013698,2]
[351793552,1738789841464,-500.22088784,0.00013698,2]
[351793554,1738789841474,-500.0,0.00013698,2]
[351793556,1738789841484,-500.0,0.00013698,2]
[351793558,1738789841493,-500.0,0.00013698,2]
[351793560,1738789841506,-500.0,0.00013698,2]